[Event "FIDE World Rapid Chess Championship 2021"]
[White "Ter-Sahakyan, Samvel"]
[Black "Baum, Jonasz"]
[WhiteFideId "13302531"]
[BlackFideId "1195360"]
[WhiteElo "2573"]
[BlackElo "2343"]
[Result "1-0"]
[Round "01"]
[TimeControl "900+10"]
[Date "2021.12.26"]
[WhiteClock "0:00:48"]
[BlackClock "0:00:16"]

1. e4 {[%clk 0:15:16]}  c5 {[%clk 0:15:19]} 2. Nf3 {[%clk 0:15:21]}  d6 {[%clk 0:15:28]} 3. Bb5+ {[%clk 0:15:23]}  Bd7 {[%clk 0:15:30]} 4. Bxd7+ {[%clk 0:15:23]}  Qxd7 {[%clk 0:15:38]} 5. O-O {[%clk 0:15:29]}  Nf6 {[%clk 0:15:39]} 6. Re1 {[%clk 0:15:30]}  Nc6 {[%clk 0:15:40]} 7. c3 {[%clk 0:15:33]}  e6 {[%clk 0:15:45]} 8. d4 {[%clk 0:15:37]}  cxd4 {[%clk 0:15:52]} 9. cxd4 {[%clk 0:15:45]}  d5 {[%clk 0:15:59]} 10. e5 {[%clk 0:15:52]}  Ng8 {[%clk 0:15:44]} 11. Nbd2 {[%clk 0:13:02]}  Nge7 {[%clk 0:13:25]} 12. Nf1 {[%clk 0:13:08]}  Nc8 {[%clk 0:11:27]} 13. Ng3 {[%clk 0:11:40]}  Nb6 {[%clk 0:10:08]} 14. Bg5 {[%clk 0:11:13]}  h6 {[%clk 0:09:52]} 15. Bh4 {[%clk 0:11:22]}  Be7 {[%clk 0:08:54]} 16. Nh5 {[%clk 0:10:58]}  Rg8 {[%clk 0:08:25]} 17. Bxe7 {[%clk 0:09:16]}  Qxe7 {[%clk 0:08:33]} 18. Rc1 {[%clk 0:09:12]}  O-O-O {[%clk 0:08:13]} 19. Qd3 {[%clk 0:09:10]}  Kb8 {[%clk 0:08:15]} 20. h3 {[%clk 0:08:21]}  Qb4 {[%clk 0:06:51]} 21. Re2 {[%clk 0:07:04]}  Qe7 {[%clk 0:06:04]} 22. Qb1 {[%clk 0:05:49]}  Rc8 {[%clk 0:06:03]} 23. Rc3 {[%clk 0:05:34]}  Nc4 {[%clk 0:04:19]} 24. Qc1 {[%clk 0:05:32]}  Nb4 {[%clk 0:03:13]} 25. b3 {[%clk 0:05:06]}  Nb6 {[%clk 0:03:22]} 26. Rxc8+ {[%clk 0:04:55]}  Rxc8 {[%clk 0:03:22]} 27. Qf4 {[%clk 0:04:34]}  Qf8 {[%clk 0:02:56]} 28. Qg4 {[%clk 0:04:09]}  g6 {[%clk 0:02:59]} 29. Nf6 {[%clk 0:04:17]}  Nd3 {[%clk 0:01:56]} 30. Rd2 {[%clk 0:03:40]}  Rc3 {[%clk 0:02:04]} 31. Kh2 {[%clk 0:03:15]}  a5 {[%clk 0:02:08]} 32. h4 {[%clk 0:02:52]}  a4 {[%clk 0:01:58]} 33. bxa4 {[%clk 0:02:58]}  Ka7 {[%clk 0:01:21]} 34. h5 {[%clk 0:02:48]}  g5 {[%clk 0:01:17]} 35. Nxg5 {[%clk 0:01:15]}  hxg5 {[%clk 0:01:10]} 36. Qxg5 {[%clk 0:00:41]}  Nb4 {[%clk 0:00:43]} 37. h6 {[%clk 0:00:31]}  Rc8 {[%clk 0:00:46]} 38. Qg7 {[%clk 0:00:32]}  Nc4 {[%clk 0:00:26]} 39. Rd1 {[%clk 0:00:35]}  Nc6 {[%clk 0:00:33]} 40. Rd3 {[%clk 0:00:30]}  Ne7 {[%clk 0:00:25]} 41. Rg3 {[%clk 0:00:14]}  Qh8 {[%clk 0:00:12]} 42. h7 {[%clk 0:00:14]}  Nd2 {[%clk 0:00:11]} 43. Qxh8 {[%clk 0:00:19]}  Rxh8 {[%clk 0:00:19]} 44. Rg7 {[%clk 0:00:28]}  Ne4 {[%clk 0:00:17]} 45. Rxf7 {[%clk 0:00:17]}  Nf5 {[%clk 0:00:21]} 46. Nxe4 {[%clk 0:00:18]}  dxe4 {[%clk 0:00:29]} 47. g4 {[%clk 0:00:19]}  Nxd4 {[%clk 0:00:23]} 48. Kg3 {[%clk 0:00:17]}  Kb6 {[%clk 0:00:11]} 49. g5 {[%clk 0:00:23]}  Nc6 {[%clk 0:00:12]} 50. Kf4 {[%clk 0:00:24]}  Nd8 {[%clk 0:00:16]} 51. Re7 {[%clk 0:00:27]}  Rf8+ {[%clk 0:00:11]} 52. Kxe4 {[%clk 0:00:34]}  Nc6 {[%clk 0:00:11]} 53. Rxe6 {[%clk 0:00:36]}  Kc5 {[%clk 0:00:19]} 54. Rxc6+ {[%clk 0:00:39]}  bxc6 {[%clk 0:00:16]} 55. g6 {[%clk 0:00:48]} 1-0


[Site "http://www.Chess.com"]

[Event "FIDE World Rapid Chess Championship 2021"]
[White "Maghsoodloo, Parham"]
[Black "Aronian, Levon"]
[WhiteFideId "12539929"]
[BlackFideId "13300474"]
[WhiteElo "2512"]
[BlackElo "2728"]
[Result "1/2-1/2"]
[Round "01"]
[TimeControl "900+10"]
[Date "2021.12.26"]
[WhiteClock "0:05:08"]
[BlackClock "0:12:30"]

1. d4 {[%clk 0:15:17]}  d5 {[%clk 0:15:16]} 2. c4 {[%clk 0:15:21]}  dxc4 {[%clk 0:15:24]} 3. Nf3 {[%clk 0:15:26]}  Nf6 {[%clk 0:15:31]} 4. e3 {[%clk 0:15:34]}  e6 {[%clk 0:15:38]} 5. Bxc4 {[%clk 0:15:41]}  a6 {[%clk 0:15:45]} 6. O-O {[%clk 0:15:47]}  c5 {[%clk 0:15:53]} 7. Be2 {[%clk 0:15:55]}  Nbd7 {[%clk 0:15:55]} 8. b3 {[%clk 0:15:24]}  b6 {[%clk 0:16:00]} 9. Bb2 {[%clk 0:15:15]}  Bb7 {[%clk 0:16:08]} 10. Nbd2 {[%clk 0:15:22]}  Be7 {[%clk 0:16:16]} 11. Rc1 {[%clk 0:14:44]}  O-O {[%clk 0:16:19]} 12. Qc2 {[%clk 0:14:40]}  Rc8 {[%clk 0:15:55]} 13. Qb1 {[%clk 0:14:44]}  cxd4 {[%clk 0:15:26]} 14. Nxd4 {[%clk 0:14:50]}  Rxc1 {[%clk 0:15:34]} 15. Rxc1 {[%clk 0:14:58]}  Qa8 {[%clk 0:15:42]} 16. Bf3 {[%clk 0:15:05]}  Bxf3 {[%clk 0:15:25]} 17. N2xf3 {[%clk 0:14:54]}  Rc8 {[%clk 0:15:29]} 18. h3 {[%clk 0:14:53]}  h6 {[%clk 0:15:29]} 19. Rc2 {[%clk 0:14:10]}  Nd5 {[%clk 0:14:35]} 20. a3 {[%clk 0:11:10]}  a5 {[%clk 0:14:30]} 21. Qc1 {[%clk 0:10:01]}  Rc5 {[%clk 0:14:37]} 22. Ne1 {[%clk 0:09:35]}  Qc8 {[%clk 0:14:14]} 23. Nd3 {[%clk 0:09:39]}  Rxc2 {[%clk 0:14:21]} 24. Qxc2 {[%clk 0:09:48]}  Qxc2 {[%clk 0:14:21]} 25. Nxc2 {[%clk 0:09:57]}  f6 {[%clk 0:13:42]} 26. Kf1 {[%clk 0:07:28]}  e5 {[%clk 0:13:33]} 27. e4 {[%clk 0:05:40]}  Nc7 {[%clk 0:13:41]} 28. Bc1 {[%clk 0:05:37]}  Ne6 {[%clk 0:13:07]} 29. Be3 {[%clk 0:05:45]}  Bc5 {[%clk 0:13:00]} 30. b4 {[%clk 0:04:52]}  axb4 {[%clk 0:12:34]} 31. axb4 {[%clk 0:05:01]}  Bxe3 {[%clk 0:12:30]} 32. Nxe3 {[%clk 0:05:08]} 1/2-1/2


[Site "http://www.Chess.com"]

[Event "FIDE World Rapid Chess Championship 2021"]
[White "Niemann, Hans Moke"]
[Black "Alonso Rosell, Alvar"]
[WhiteFideId "2093596"]
[BlackFideId "2270544"]
[WhiteElo "2327"]
[BlackElo "2571"]
[Result "1-0"]
[Round "01"]
[TimeControl "900+10"]
[Date "2021.12.26"]
[WhiteClock "0:10:38"]
[BlackClock "0:00:38"]

1. d4 {[%clk 0:15:17]}  Nf6 {[%clk 0:15:18]} 2. c4 {[%clk 0:15:24]}  e6 {[%clk 0:15:26]} 3. Nf3 {[%clk 0:15:31]}  d5 {[%clk 0:15:31]} 4. g3 {[%clk 0:15:36]}  Bb4+ {[%clk 0:15:08]} 5. Bd2 {[%clk 0:15:43]}  Be7 {[%clk 0:15:16]} 6. Bg2 {[%clk 0:15:45]}  O-O {[%clk 0:15:12]} 7. O-O {[%clk 0:15:33]}  Nbd7 {[%clk 0:15:19]} 8. Bc3 {[%clk 0:15:15]}  a5 {[%clk 0:14:24]} 9. Nbd2 {[%clk 0:14:42]}  c6 {[%clk 0:13:41]} 10. b3 {[%clk 0:13:51]}  b6 {[%clk 0:13:30]} 11. Qc2 {[%clk 0:13:17]}  Bb7 {[%clk 0:13:17]} 12. e4 {[%clk 0:13:24]}  dxe4 {[%clk 0:11:59]} 13. Ng5 {[%clk 0:13:17]}  c5 {[%clk 0:10:58]} 14. Ndxe4 {[%clk 0:13:15]}  Nxe4 {[%clk 0:09:42]} 15. Nxe4 {[%clk 0:13:22]}  cxd4 {[%clk 0:09:33]} 16. Bxd4 {[%clk 0:13:30]}  Qc7 {[%clk 0:08:44]} 17. Qe2 {[%clk 0:13:15]}  Rad8 {[%clk 0:06:50]} 18. Rfd1 {[%clk 0:13:19]}  Nc5 {[%clk 0:06:37]} 19. Nxc5 {[%clk 0:10:08]}  Bxc5 {[%clk 0:06:25]} 20. Be5 {[%clk 0:10:13]}  Qe7 {[%clk 0:06:17]} 21. Bxb7 {[%clk 0:10:19]}  Qxb7 {[%clk 0:06:23]} 22. Qg4 {[%clk 0:10:25]}  f5 {[%clk 0:05:12]} 23. Qe2 {[%clk 0:10:31]}  Qe4 {[%clk 0:04:31]} 24. Qxe4 {[%clk 0:09:26]}  fxe4 {[%clk 0:04:36]} 25. Bf4 {[%clk 0:09:30]}  e5 {[%clk 0:02:04]} 26. Rxd8 {[%clk 0:09:37]}  Rxd8 {[%clk 0:02:12]} 27. Bg5 {[%clk 0:09:45]}  Rf8 {[%clk 0:01:49]} 28. Rf1 {[%clk 0:09:42]}  Rf3 {[%clk 0:01:26]} 29. Kg2 {[%clk 0:09:32]}  a4 {[%clk 0:00:58]} 30. bxa4 {[%clk 0:08:09]}  Ra3 {[%clk 0:01:05]} 31. Re1 {[%clk 0:08:12]}  Rxa2 {[%clk 0:01:10]} 32. Be3 {[%clk 0:08:13]}  Rxa4 {[%clk 0:01:05]} 33. Bxc5 {[%clk 0:08:21]}  bxc5 {[%clk 0:01:14]} 34. Rxe4 {[%clk 0:08:30]}  Kf7 {[%clk 0:01:22]} 35. Rxe5 {[%clk 0:08:36]}  Rxc4 {[%clk 0:01:31]} 36. h4 {[%clk 0:08:41]}  Kf6 {[%clk 0:01:17]} 37. f4 {[%clk 0:08:48]}  Rc1 {[%clk 0:01:02]} 38. Kf3 {[%clk 0:08:53]}  Rc3+ {[%clk 0:00:39]} 39. Kg4 {[%clk 0:09:01]}  g6 {[%clk 0:00:35]} 40. h5 {[%clk 0:09:10]}  Rc1 {[%clk 0:00:31]} 41. Re8 {[%clk 0:08:48]}  c4 {[%clk 0:00:20]} 42. hxg6 {[%clk 0:08:56]}  hxg6 {[%clk 0:00:28]} 43. Rc8 {[%clk 0:09:04]}  Rc3 {[%clk 0:00:35]} 44. Rc6+ {[%clk 0:09:13]}  Kf7 {[%clk 0:00:44]} 45. Rc5 {[%clk 0:09:12]}  Kf6 {[%clk 0:00:53]} 46. Kh4 {[%clk 0:09:19]}  Kg7 {[%clk 0:00:22]} 47. g4 {[%clk 0:09:23]}  Kh6 {[%clk 0:00:15]} 48. Rc6 {[%clk 0:09:29]}  Rc1 {[%clk 0:00:12]} 49. f5 {[%clk 0:09:37]}  Rh1+ {[%clk 0:00:19]} 50. Kg3 {[%clk 0:09:46]}  Rg1+ {[%clk 0:00:27]} 51. Kf3 {[%clk 0:09:48]}  c3 {[%clk 0:00:13]} 52. Rxg6+ {[%clk 0:09:55]}  Kh7 {[%clk 0:00:22]} 53. Rc6 {[%clk 0:10:02]}  Rc1 {[%clk 0:00:28]} 54. Kf4 {[%clk 0:10:08]}  c2 {[%clk 0:00:32]} 55. Kg5 {[%clk 0:10:17]}  Kg7 {[%clk 0:00:28]} 56. Rc7+ {[%clk 0:10:22]}  Kf8 {[%clk 0:00:32]} 57. Kf6 {[%clk 0:10:30]}  Ke8 {[%clk 0:00:38]} 58. g5 {[%clk 0:10:38]} 1-0


[Site "http://www.Chess.com"]

[Event "FIDE World Rapid Chess Championship 2021"]
[White "Mamedyarov, Shakhriyar"]
[Black "Czarnota, Pawel"]
[WhiteFideId "13401319"]
[BlackFideId "1121219"]
[WhiteElo "2727"]
[BlackElo "2511"]
[Result "1-0"]
[Round "01"]
[TimeControl "900+10"]
[Date "2021.12.26"]
[WhiteClock "0:09:57"]
[BlackClock "0:00:35"]

1. d4 {[%clk 0:15:19]}  Nf6 {[%clk 0:15:16]} 2. c4 {[%clk 0:15:26]}  g6 {[%clk 0:15:13]} 3. g3 {[%clk 0:15:17]}  Bg7 {[%clk 0:15:19]} 4. Bg2 {[%clk 0:15:26]}  O-O {[%clk 0:15:20]} 5. Nc3 {[%clk 0:15:23]}  d6 {[%clk 0:15:26]} 6. Nf3 {[%clk 0:15:20]}  Nbd7 {[%clk 0:14:00]} 7. O-O {[%clk 0:15:25]}  e5 {[%clk 0:14:08]} 8. e4 {[%clk 0:15:01]}  exd4 {[%clk 0:14:11]} 9. Nxd4 {[%clk 0:15:10]}  Re8 {[%clk 0:14:18]} 10. Be3 {[%clk 0:14:16]}  Nc5 {[%clk 0:13:44]} 11. f3 {[%clk 0:14:21]}  c6 {[%clk 0:13:42]} 12. Qd2 {[%clk 0:14:26]}  a5 {[%clk 0:11:00]} 13. Rad1 {[%clk 0:14:01]}  Nfd7 {[%clk 0:11:05]} 14. Nb3 {[%clk 0:13:53]}  Nxb3 {[%clk 0:10:01]} 15. axb3 {[%clk 0:14:02]}  Bf8 {[%clk 0:10:05]} 16. f4 {[%clk 0:12:55]}  Qc7 {[%clk 0:10:10]} 17. Qf2 {[%clk 0:12:43]}  Nc5 {[%clk 0:09:36]} 18. e5 {[%clk 0:12:46]}  b6 {[%clk 0:07:48]} 19. Bxc5 {[%clk 0:12:01]}  dxc5 {[%clk 0:07:54]} 20. Nb5 {[%clk 0:11:20]}  Qb7 {[%clk 0:05:45]} 21. Nd6 {[%clk 0:10:41]}  Bxd6 {[%clk 0:05:53]} 22. Rxd6 {[%clk 0:10:49]}  Bd7 {[%clk 0:06:01]} 23. Rfd1 {[%clk 0:10:21]}  Re7 {[%clk 0:06:09]} 24. g4 {[%clk 0:09:34]}  Bxg4 {[%clk 0:02:32]} 25. Bxc6 {[%clk 0:09:42]}  Qc8 {[%clk 0:01:17]} 26. R1d2 {[%clk 0:09:50]}  Rb8 {[%clk 0:00:35]} 27. Qh4 {[%clk 0:09:57]} 1-0


[Site "http://www.Chess.com"]

[Event "FIDE World Rapid Chess Championship 2021"]
[White "Kuzmicz, Krystian"]
[Black "Najer, Evgeniy"]
[WhiteFideId "1119125"]
[BlackFideId "4118987"]
[WhiteElo "2314"]
[BlackElo "2565"]
[Result "0-1"]
[Round "01"]
[TimeControl "900+10"]
[Date "2021.12.26"]
[WhiteClock "0:03:17"]
[BlackClock "0:06:52"]

1. e4 {[%clk 0:15:18]}  c5 {[%clk 0:15:17]} 2. d3 {[%clk 0:15:26]}  g6 {[%clk 0:15:06]} 3. g3 {[%clk 0:15:34]}  d5 {[%clk 0:14:22]} 4. Nd2 {[%clk 0:15:21]}  Bg7 {[%clk 0:14:01]} 5. Bg2 {[%clk 0:15:30]}  Nf6 {[%clk 0:13:48]} 6. Ne2 {[%clk 0:14:35]}  Nc6 {[%clk 0:13:51]} 7. O-O {[%clk 0:14:43]}  O-O {[%clk 0:13:44]} 8. f4 {[%clk 0:13:03]}  Ng4 {[%clk 0:13:40]} 9. Nf3 {[%clk 0:12:56]}  dxe4 {[%clk 0:13:30]} 10. dxe4 {[%clk 0:13:04]}  Nb4 {[%clk 0:13:03]} 11. c3 {[%clk 0:08:09]}  Qxd1 {[%clk 0:13:09]} 12. Rxd1 {[%clk 0:08:17]}  Nc2 {[%clk 0:13:17]} 13. Rb1 {[%clk 0:05:56]}  Be6 {[%clk 0:13:24]} 14. b3 {[%clk 0:06:02]}  Nce3 {[%clk 0:13:33]} 15. Bxe3 {[%clk 0:06:04]}  Nxe3 {[%clk 0:13:41]} 16. Rd3 {[%clk 0:05:54]}  Nxg2 {[%clk 0:13:37]} 17. Kxg2 {[%clk 0:06:02]}  Rfd8 {[%clk 0:12:44]} 18. Rxd8+ {[%clk 0:03:55]}  Rxd8 {[%clk 0:12:52]} 19. c4 {[%clk 0:04:02]}  Rd3 {[%clk 0:12:49]} 20. Kf2 {[%clk 0:03:58]}  Bd7 {[%clk 0:10:38]} 21. Neg1 {[%clk 0:03:07]}  Bc6 {[%clk 0:10:29]} 22. e5 {[%clk 0:03:07]}  f6 {[%clk 0:09:38]} 23. exf6 {[%clk 0:02:52]}  exf6 {[%clk 0:09:00]} 24. Ke2 {[%clk 0:02:57]}  Be4 {[%clk 0:07:11]} 25. Rd1 {[%clk 0:03:01]}  Rxd1 {[%clk 0:07:18]} 26. Kxd1 {[%clk 0:03:09]}  Kf7 {[%clk 0:06:52]} 27. Nd2 {[%clk 0:03:17]} 0-1


[Site "http://www.Chess.com"]

[Event "FIDE World Rapid Chess Championship 2021"]
[White "Sanal, Vahap"]
[Black "Oparin, Grigoriy"]
[WhiteFideId "6300545"]
[BlackFideId "24125890"]
[WhiteElo "2509"]
[BlackElo "2725"]
[Result "1/2-1/2"]
[Round "01"]
[TimeControl "900+10"]
[Date "2021.12.26"]
[WhiteClock "0:01:11"]
[BlackClock "0:00:43"]

1. e4 {[%clk 0:15:18]}  e5 {[%clk 0:15:18]} 2. Nc3 {[%clk 0:15:18]}  Nc6 {[%clk 0:15:24]} 3. Bc4 {[%clk 0:14:54]}  Nf6 {[%clk 0:15:29]} 4. d3 {[%clk 0:15:02]}  Na5 {[%clk 0:15:16]} 5. Nge2 {[%clk 0:15:06]}  Nxc4 {[%clk 0:14:34]} 6. dxc4 {[%clk 0:15:14]}  Bc5 {[%clk 0:14:39]} 7. h3 {[%clk 0:15:21]}  d6 {[%clk 0:14:02]} 8. Qd3 {[%clk 0:15:09]}  h6 {[%clk 0:13:06]} 9. O-O {[%clk 0:14:52]}  a5 {[%clk 0:12:28]} 10. a4 {[%clk 0:14:56]}  O-O {[%clk 0:12:20]} 11. b3 {[%clk 0:15:03]}  Be6 {[%clk 0:11:44]} 12. Ng3 {[%clk 0:14:27]}  Nd7 {[%clk 0:11:09]} 13. Be3 {[%clk 0:14:02]}  Bxe3 {[%clk 0:09:59]} 14. Qxe3 {[%clk 0:14:09]}  Nc5 {[%clk 0:10:04]} 15. Rad1 {[%clk 0:14:02]}  Qg5 {[%clk 0:09:36]} 16. Rfe1 {[%clk 0:09:14]}  Qxe3 {[%clk 0:09:19]} 17. Rxe3 {[%clk 0:09:22]}  g6 {[%clk 0:09:22]} 18. Ree1 {[%clk 0:08:44]}  Kg7 {[%clk 0:07:41]} 19. Nf1 {[%clk 0:08:09]}  Rad8 {[%clk 0:07:32]} 20. Ne3 {[%clk 0:08:05]}  Rd7 {[%clk 0:06:59]} 21. Kh2 {[%clk 0:08:10]}  c6 {[%clk 0:05:08]} 22. g3 {[%clk 0:08:00]}  f5 {[%clk 0:04:42]} 23. exf5 {[%clk 0:08:02]}  Bxf5 {[%clk 0:04:50]} 24. Nxf5+ {[%clk 0:06:41]}  Rxf5 {[%clk 0:04:57]} 25. Kg2 {[%clk 0:06:48]}  g5 {[%clk 0:03:25]} 26. Ne4 {[%clk 0:03:57]}  Nxe4 {[%clk 0:03:32]} 27. Rxe4 {[%clk 0:04:05]}  b6 {[%clk 0:03:24]} 28. h4 {[%clk 0:03:55]}  Kg6 {[%clk 0:03:08]} 29. hxg5 {[%clk 0:03:48]}  hxg5 {[%clk 0:03:16]} 30. Re2 {[%clk 0:03:55]}  Rff7 {[%clk 0:02:31]} 31. Red2 {[%clk 0:04:01]}  Rf6 {[%clk 0:02:39]} 32. Rd3 {[%clk 0:03:52]}  Kf7 {[%clk 0:02:10]} 33. Rh1 {[%clk 0:03:40]}  Ke6 {[%clk 0:02:04]} 34. Rf3 {[%clk 0:03:21]}  Rdf7 {[%clk 0:01:26]} 35. Rxf6+ {[%clk 0:03:27]}  Rxf6 {[%clk 0:01:34]} 36. Rh8 {[%clk 0:03:29]}  d5 {[%clk 0:01:37]} 37. Rb8 {[%clk 0:03:10]}  dxc4 {[%clk 0:01:27]} 38. Rxb6 {[%clk 0:03:04]}  Kd6 {[%clk 0:00:51]} 39. Ra6 {[%clk 0:03:03]}  cxb3 {[%clk 0:00:48]} 40. cxb3 {[%clk 0:03:12]}  Rf8 {[%clk 0:00:56]} 41. Rxa5 {[%clk 0:02:43]}  Rb8 {[%clk 0:01:04]} 42. Ra7 {[%clk 0:02:15]}  Rxb3 {[%clk 0:01:12]} 43. Rg7 {[%clk 0:02:23]}  Ra3 {[%clk 0:00:27]} 44. Rg6+ {[%clk 0:02:09]}  Kd5 {[%clk 0:00:28]} 45. Rxg5 {[%clk 0:02:17]}  Ke6 {[%clk 0:00:26]} 46. Rg6+ {[%clk 0:01:36]}  Kd5 {[%clk 0:00:34]} 47. Rg5 {[%clk 0:01:44]}  Ke6 {[%clk 0:00:43]} 48. Rg6+ {[%clk 0:01:11]} 1/2-1/2


[Site "http://www.Chess.com"]

[Event "FIDE World Rapid Chess Championship 2021"]
[White "Artemiev, Vladislav"]
[Black "Shevchenko, Kirill"]
[WhiteFideId "24101605"]
[BlackFideId "14129574"]
[WhiteElo "2714"]
[BlackElo "2508"]
[Result "1-0"]
[Round "01"]
[TimeControl "900+10"]
[Date "2021.12.26"]
[WhiteClock "0:01:22"]
[BlackClock "0:00:21"]

1. Nf3 {[%clk 0:15:11]}  Nf6 {[%clk 0:15:17]} 2. c4 {[%clk 0:15:16]}  g6 {[%clk 0:15:21]} 3. b3 {[%clk 0:15:23]}  Bg7 {[%clk 0:14:58]} 4. Bb2 {[%clk 0:15:30]}  d6 {[%clk 0:14:00]} 5. g3 {[%clk 0:15:36]}  O-O {[%clk 0:13:59]} 6. Bg2 {[%clk 0:15:43]}  e5 {[%clk 0:13:55]} 7. d3 {[%clk 0:15:50]}  Nc6 {[%clk 0:11:35]} 8. O-O {[%clk 0:15:51]}  Bf5 {[%clk 0:11:39]} 9. Nc3 {[%clk 0:15:18]}  Qd7 {[%clk 0:11:30]} 10. Ng5 {[%clk 0:13:31]}  h6 {[%clk 0:09:14]} 11. Nge4 {[%clk 0:13:36]}  Nh7 {[%clk 0:08:40]} 12. Nd5 {[%clk 0:13:12]}  Ne7 {[%clk 0:08:28]} 13. Rc1 {[%clk 0:10:23]}  Be6 {[%clk 0:08:26]} 14. Nxe7+ {[%clk 0:06:50]}  Qxe7 {[%clk 0:08:34]} 15. Nc3 {[%clk 0:06:44]}  c6 {[%clk 0:07:56]} 16. b4 {[%clk 0:06:51]}  a6 {[%clk 0:05:48]} 17. a4 {[%clk 0:06:29]}  Rfd8 {[%clk 0:05:29]} 18. Qb3 {[%clk 0:02:31]}  Nf6 {[%clk 0:04:00]} 19. a5 {[%clk 0:02:36]}  h5 {[%clk 0:03:36]} 20. e4 {[%clk 0:01:48]}  h4 {[%clk 0:03:22]} 21. Rce1 {[%clk 0:01:34]}  Rab8 {[%clk 0:01:35]} 22. Bc1 {[%clk 0:01:21]}  Nh5 {[%clk 0:01:26]} 23. Qd1 {[%clk 0:01:06]}  Qd7 {[%clk 0:00:55]} 24. Be3 {[%clk 0:01:04]}  Bg4 {[%clk 0:00:36]} 25. Bf3 {[%clk 0:01:07]}  Bxf3 {[%clk 0:00:26]} 26. Qxf3 {[%clk 0:01:15]}  Qe6 {[%clk 0:00:26]} 27. Ne2 {[%clk 0:00:21]}  hxg3 {[%clk 0:00:22]} 28. fxg3 {[%clk 0:00:26]}  Rf8 {[%clk 0:00:12]} 29. g4 {[%clk 0:00:21]}  Nf6 {[%clk 0:00:20]} 30. h3 {[%clk 0:00:30]}  d5 {[%clk 0:00:16]} 31. cxd5 {[%clk 0:00:19]}  cxd5 {[%clk 0:00:25]} 32. Ng3 {[%clk 0:00:13]}  dxe4 {[%clk 0:00:27]} 33. dxe4 {[%clk 0:00:22]}  Rbc8 {[%clk 0:00:21]} 34. Bc5 {[%clk 0:00:16]}  Rfd8 {[%clk 0:00:25]} 35. Rd1 {[%clk 0:00:25]}  Nh7 {[%clk 0:00:29]} 36. h4 {[%clk 0:00:28]}  Bf8 {[%clk 0:00:16]} 37. Rd5 {[%clk 0:00:22]}  Bg7 {[%clk 0:00:12]} 38. Rfd1 {[%clk 0:00:15]}  Re8 {[%clk 0:00:21]} 39. g5 {[%clk 0:00:22]}  Nf8 {[%clk 0:00:12]} 40. Kg2 {[%clk 0:00:28]}  Rc7 {[%clk 0:00:13]} 41. h5 {[%clk 0:00:13]}  gxh5 {[%clk 0:00:17]} 42. Nxh5 {[%clk 0:00:22]}  Ng6 {[%clk 0:00:25]} 43. Kg3 {[%clk 0:00:24]}  Nf4 {[%clk 0:00:28]} 44. Nxf4 {[%clk 0:00:19]}  exf4+ {[%clk 0:00:37]} 45. Qxf4 {[%clk 0:00:24]}  Be5 {[%clk 0:00:12]} 46. Rxe5 {[%clk 0:00:29]}  Qxe5 {[%clk 0:00:21]} 47. Qxe5 {[%clk 0:00:37]}  Rxe5 {[%clk 0:00:30]} 48. Rd8+ {[%clk 0:00:25]}  Kh7 {[%clk 0:00:39]} 49. Bd6 {[%clk 0:00:21]}  Rc3+ {[%clk 0:00:21]} 50. Kf4 {[%clk 0:00:30]}  Rb5 {[%clk 0:00:12]} 51. Be5 {[%clk 0:00:39]}  Rf3+ {[%clk 0:00:12]} 52. Kxf3 {[%clk 0:00:47]}  Rxe5 {[%clk 0:00:21]} 53. Rd5 {[%clk 0:00:36]}  Re7 {[%clk 0:00:28]} 54. Rd6 {[%clk 0:00:38]}  Kg7 {[%clk 0:00:24]} 55. Kf4 {[%clk 0:00:47]}  Kf8 {[%clk 0:00:19]} 56. Kf5 {[%clk 0:00:50]}  Kg7 {[%clk 0:00:28]} 57. e5 {[%clk 0:00:55]}  Rc7 {[%clk 0:00:31]} 58. e6 {[%clk 0:00:47]}  fxe6+ {[%clk 0:00:27]} 59. Kxe6 {[%clk 0:00:48]}  Kg6 {[%clk 0:00:24]} 60. Rd7 {[%clk 0:00:56]}  Rc4 {[%clk 0:00:21]} 61. Rxb7 {[%clk 0:01:04]}  Kxg5 {[%clk 0:00:30]} 62. Kd5 {[%clk 0:01:10]}  Rc1 {[%clk 0:00:12]} 63. Rb6 {[%clk 0:01:17]}  Rb1 {[%clk 0:00:21]} 64. Kc6 {[%clk 0:01:22]} 1-0


[Site "http://www.Chess.com"]

[Event "FIDE World Rapid Chess Championship 2021"]
[White "Van Foreest, Jorden"]
[Black "Asadli, Vugar"]
[WhiteFideId "1039784"]
[BlackFideId "13405764"]
[WhiteElo "2563"]
[BlackElo "2309"]
[Result "1-0"]
[Round "01"]
[TimeControl "900+10"]
[Date "2021.12.26"]
[WhiteClock "0:10:50"]
[BlackClock "0:04:06"]

1. e4 {[%clk 0:15:16]}  c6 {[%clk 0:15:17]} 2. Nf3 {[%clk 0:15:16]}  d5 {[%clk 0:15:24]} 3. d3 {[%clk 0:15:21]}  Bg4 {[%clk 0:15:11]} 4. h3 {[%clk 0:15:19]}  Bh5 {[%clk 0:15:13]} 5. Nc3 {[%clk 0:15:00]}  dxe4 {[%clk 0:14:56]} 6. Nxe4 {[%clk 0:14:50]}  Nd7 {[%clk 0:15:02]} 7. g4 {[%clk 0:14:16]}  Bg6 {[%clk 0:15:09]} 8. Qe2 {[%clk 0:14:25]}  Qc7 {[%clk 0:15:14]} 9. Bg2 {[%clk 0:14:26]}  O-O-O {[%clk 0:15:01]} 10. b4 {[%clk 0:13:43]}  Ngf6 {[%clk 0:13:45]} 11. Nc3 {[%clk 0:13:52]}  e6 {[%clk 0:12:47]} 12. Rb1 {[%clk 0:13:59]}  Nd5 {[%clk 0:11:46]} 13. Nxd5 {[%clk 0:14:06]}  exd5 {[%clk 0:11:47]} 14. O-O {[%clk 0:14:07]}  Bd6 {[%clk 0:09:51]} 15. b5 {[%clk 0:14:14]}  Rde8 {[%clk 0:09:03]} 16. Qd1 {[%clk 0:14:21]}  f5 {[%clk 0:07:59]} 17. bxc6 {[%clk 0:14:26]}  bxc6 {[%clk 0:08:06]} 18. Nh4 {[%clk 0:13:55]}  Rhf8 {[%clk 0:07:39]} 19. c4 {[%clk 0:13:39]}  fxg4 {[%clk 0:06:49]} 20. Nxg6 {[%clk 0:13:38]}  gxh3 {[%clk 0:06:50]} 21. Bxh3 {[%clk 0:13:04]}  hxg6 {[%clk 0:06:59]} 22. cxd5 {[%clk 0:13:13]}  Rf5 {[%clk 0:05:00]} 23. Bxf5 {[%clk 0:11:47]}  gxf5 {[%clk 0:04:06]} 24. Qa4 {[%clk 0:11:39]}  Ne5 {[%clk 0:03:53]} 25. Qa6+ {[%clk 0:11:35]}  Kd8 {[%clk 0:03:52]} 26. Rb7 {[%clk 0:11:15]}  Nf3+ {[%clk 0:03:48]} 27. Kg2 {[%clk 0:11:23]}  Nh4+ {[%clk 0:03:58]} 28. Kh1 {[%clk 0:10:41]}  Rh8 {[%clk 0:04:06]} 29. Bg5+ {[%clk 0:10:50]} 1-0


[Site "http://www.Chess.com"]